[Event "*** SCC Grand Prix: Titled Tuesday Blitz"]
[Site "Chess.com"]
[Date "2020.09.29"]
[Round "7"]
[White "NotFischer"]
[Black "GelmanAlexander"]
[Result "0-1"]
[WhiteElo "2301"]
[BlackElo "2539"]
[TimeControl "180+1"]
[EndTime "11:14:21 PDT"]
[Termination "GelmanAlexander won by resignation"]

1. e4 {[%clk 0:02:59.4]} 1... c5 {[%clk 0:02:59.3]} 2. Nc3 {[%clk 0:02:59.2]}
2... e6 {[%clk 0:02:52.3]} 3. g3 {[%clk 0:02:59.1]} 3... Nc6 {[%clk 0:02:51.1]}
4. Bg2 {[%clk 0:02:59.6]} 4... Nf6 {[%clk 0:02:51.5]} 5. d3 {[%clk 0:03:00]}
5... Be7 {[%clk 0:02:46.8]} 6. Nge2 {[%clk 0:03:00.1]} 6... d6 {[%clk
0:02:45.7]} 7. O-O {[%clk 0:03:00.3]} 7... Rb8 {[%clk 0:02:45.3]} 8. h3 {[%clk
0:03:00.7]} 8... b5 {[%clk 0:02:44.5]} 9. a3 {[%clk 0:03:01]} 9... a5 {[%clk
0:02:44]} 10. a4 {[%clk 0:03:01.4]} 10... b4 {[%clk 0:02:43.6]} 11. Nb5 {[%clk
0:03:01.9]} 11... Ba6 {[%clk 0:02:40.1]} 12. c4 {[%clk 0:03:02.1]} 12... bxc3
{[%clk 0:02:39.8]} 13. bxc3 {[%clk 0:02:56.6]} 13... O-O {[%clk 0:02:24.8]} 14.
Rb1 {[%clk 0:02:53.4]} 14... d5 {[%clk 0:02:16.7]} 15. exd5 {[%clk 0:02:42.6]}
15... Nxd5 {[%clk 0:02:15.3]} 16. Nf4 {[%clk 0:02:31.7]} 16... Bxb5 {[%clk
0:01:15.9]} 17. Nxd5 {[%clk 0:02:30.5]} 17... Ba6 {[%clk 0:01:13.9]} 18. Nxe7+
{[%clk 0:02:05.6]} 18... Nxe7 {[%clk 0:01:13.6]} 19. Bf4 {[%clk 0:02:04.8]}
19... Rxb1 {[%clk 0:01:12.3]} 20. Qxb1 {[%clk 0:02:05.7]} 20... Bxd3 {[%clk
0:01:09.3]} 21. Qb7 {[%clk 0:01:51.8]} 21... Bxf1 {[%clk 0:01:09.6]} 22. Bxf1
{[%clk 0:01:52.7]} 22... Nd5 {[%clk 0:01:09.5]} 23. Bd2 {[%clk 0:01:43.1]} 23...
Qb6 {[%clk 0:01:03.6]} 24. Qxb6 {[%clk 0:01:28.1]} 24... Nxb6 {[%clk 0:01:03.5]}
25. Bb5 {[%clk 0:01:29]} 25... Rd8 {[%clk 0:00:51.6]} 26. Be3 {[%clk 0:01:25.8]}
26... Rd1+ {[%clk 0:00:52.1]} 27. Kg2 {[%clk 0:01:25.9]} 27... Ra1 {[%clk
0:00:52.6]} 28. Bxc5 {[%clk 0:01:25.7]} 28... Nxa4 {[%clk 0:00:53.1]} 29. Bd4
{[%clk 0:01:22.4]} 29... f6 {[%clk 0:00:49.9]} 30. c4 {[%clk 0:01:16.1]} 30...
Ra2 {[%clk 0:00:48]} 31. c5 {[%clk 0:01:11.5]} 31... e5 {[%clk 0:00:47.8]} 32.
Bc4+ {[%clk 0:01:11.4]} 32... Kf8 {[%clk 0:00:47.7]} 33. Bxa2 {[%clk 0:01:10.3]}
33... exd4 {[%clk 0:00:47.6]} 34. c6 {[%clk 0:01:09]} 34... Ke7 {[%clk 0:00:48]}
35. Kf3 {[%clk 0:01:08.9]} 35... Kd6 {[%clk 0:00:47.6]} 36. Ke4 {[%clk
0:01:08.5]} 36... Nc3+ {[%clk 0:00:46.8]} 0-1

[Event "*** SCC Grand Prix: Titled Tuesday Blitz"]
[Site "Chess.com"]
[Date "2020.09.29"]
[Round "7"]
[White "vugarrasulov"]
[Black "wonderfultime"]
[Result "0-1"]
[WhiteElo "2798"]
[BlackElo "2922"]
[TimeControl "180+1"]
[EndTime "11:14:23 PDT"]
[Termination "wonderfultime won by resignation"]

1. e4 {[%clk 0:03:00.9]} 1... c5 {[%clk 0:02:58.6]} 2. Nf3 {[%clk 0:03:01.3]}
2... Nf6 {[%clk 0:02:56.5]} 3. Nc3 {[%clk 0:03:01.1]} 3... d5 {[%clk 0:02:56.6]}
4. Bb5+ {[%clk 0:02:53.9]} 4... Bd7 {[%clk 0:02:56]} 5. Bxd7+ {[%clk 0:02:43.5]}
5... Qxd7 {[%clk 0:02:54.3]} 6. e5 {[%clk 0:02:42.7]} 6... Ng8 {[%clk
0:02:53.8]} 7. O-O {[%clk 0:02:40.2]} 7... e6 {[%clk 0:02:52.8]} 8. d3 {[%clk
0:02:36.7]} 8... Nc6 {[%clk 0:02:48.6]} 9. Re1 {[%clk 0:02:37.1]} 9... Nge7
{[%clk 0:02:40.1]} 10. Ne2 {[%clk 0:02:37.1]} 10... Ng6 {[%clk 0:02:32.4]} 11.
Ng3 {[%clk 0:02:37.2]} 11... h5 {[%clk 0:02:22.4]} 12. h4 {[%clk 0:02:36.2]}
12... Be7 {[%clk 0:02:20.9]} 13. Bg5 {[%clk 0:02:23.5]} 13... Bxg5 {[%clk
0:02:18.1]} 14. Nxg5 {[%clk 0:02:24.4]} 14... Nxh4 {[%clk 0:02:12.6]} 15. c4
{[%clk 0:02:13.5]} 15... Ng6 {[%clk 0:02:07.2]} 16. cxd5 {[%clk 0:02:09.3]}
16... Qxd5 {[%clk 0:02:05.8]} 17. Rc1 {[%clk 0:02:04.4]} 17... b6 {[%clk
0:01:31.4]} 18. Nxh5 {[%clk 0:02:03.8]} 18... Kf8 {[%clk 0:01:15.5]} 19. Re3
{[%clk 0:01:26.8]} 19... Ncxe5 {[%clk 0:01:12.8]} 20. Rh3 {[%clk 0:01:14.1]}
20... Rd8 {[%clk 0:00:55.7]} 21. Nf4 {[%clk 0:01:07.1]} 21... Nxf4 {[%clk
0:00:53.4]} 22. Rxh8+ {[%clk 0:01:07.1]} 22... Ke7 {[%clk 0:00:53.7]} 23. Rh2
{[%clk 0:01:04]} 23... Nexd3 {[%clk 0:00:53.5]} 24. Nxf7 {[%clk 0:00:29.1]}
24... Nxc1 {[%clk 0:00:49]} 0-1

[Event "*** SCC Grand Prix: Titled Tuesday Blitz"]
[Site "Chess.com"]
[Date "2020.09.29"]
[Round "7"]
[White "Chessmatus"]
[Black "Roza_Idrisova"]
[Result "0-1"]
[WhiteElo "2313"]
[BlackElo "2149"]
[TimeControl "180+1"]
[EndTime "11:14:26 PDT"]
[Termination "Roza_Idrisova won by resignation"]

1. e4 {[%clk 0:03:00.9]} 1... c6 {[%clk 0:02:59.6]} 2. d4 {[%clk 0:02:59.4]}
2... d5 {[%clk 0:02:59.6]} 3. e5 {[%clk 0:03:00.1]} 3... c5 {[%clk 0:02:59.4]}
4. dxc5 {[%clk 0:02:59.9]} 4... e6 {[%clk 0:02:59.4]} 5. Nf3 {[%clk 0:03:00.1]}
5... Bxc5 {[%clk 0:02:59.4]} 6. a3 {[%clk 0:03:00.8]} 6... Ne7 {[%clk
0:02:59.2]} 7. Bd3 {[%clk 0:02:57.9]} 7... a6 {[%clk 0:02:56.9]} 8. O-O {[%clk
0:02:54.3]} 8... Nbc6 {[%clk 0:02:56.2]} 9. b4 {[%clk 0:02:53.5]} 9... Bb6
{[%clk 0:02:55.5]} 10. Bb2 {[%clk 0:02:53]} 10... Bd7 {[%clk 0:02:51.6]} 11.
Nbd2 {[%clk 0:02:51.5]} 11... Ng6 {[%clk 0:02:51.5]} 12. c4 {[%clk 0:02:48.5]}
12... Nf4 {[%clk 0:02:50.1]} 13. Nb3 {[%clk 0:02:43.7]} 13... Nxd3 {[%clk
0:02:45.2]} 14. Qxd3 {[%clk 0:02:42.4]} 14... dxc4 {[%clk 0:02:41.3]} 15. Qxc4
{[%clk 0:02:43.3]} 15... Ne7 {[%clk 0:02:37.5]} 16. Rad1 {[%clk 0:02:27.4]}
16... Nd5 {[%clk 0:02:32.9]} 17. Qg4 {[%clk 0:02:26]} 17... g6 {[%clk
0:02:28.4]} 18. Rfe1 {[%clk 0:01:51.3]} 18... Qe7 {[%clk 0:02:26.5]} 19. Qg3
{[%clk 0:01:25.6]} 19... Ba4 {[%clk 0:02:23.2]} 20. Rxd5 {[%clk 0:00:51.8]}
20... exd5 {[%clk 0:02:18.3]} 21. e6 {[%clk 0:00:49.8]} 21... O-O {[%clk
0:02:14.6]} 22. exf7+ {[%clk 0:00:49.4]} 22... Qxf7 {[%clk 0:02:13.7]} 23. Qe5
{[%clk 0:00:45.1]} 23... d4 {[%clk 0:02:04.6]} 24. Nbxd4 {[%clk 0:00:38.2]}
24... Bc7 {[%clk 0:01:38.8]} 25. Qg5 {[%clk 0:00:22.3]} 25... Rae8 {[%clk
0:01:32.8]} 26. Rxe8 {[%clk 0:00:16.3]} 26... Rxe8 {[%clk 0:01:32.3]} 27. h4
{[%clk 0:00:17.2]} 27... Bf4 {[%clk 0:01:22.6]} 28. Qg4 {[%clk 0:00:16.4]} 28...
Bd7 {[%clk 0:01:19.2]} 0-1

[Event "*** SCC Grand Prix: Titled Tuesday Blitz"]
[Site "Chess.com"]
[Date "2020.09.29"]
[Round "7"]
[White "shineatchess"]
[Black "shriyanasmallya"]
[Result "1-0"]
[WhiteElo "2209"]
[BlackElo "1599"]
[TimeControl "180+1"]
[EndTime "11:14:36 PDT"]
[Termination "shineatchess won by resignation"]

1. e4 {[%clk 0:03:00.9]} 1... e5 {[%clk 0:02:59]} 2. Nf3 {[%clk 0:02:57.9]} 2...
Nc6 {[%clk 0:02:57.9]} 3. Nc3 {[%clk 0:02:58]} 3... Bc5 {[%clk 0:02:55.7]} 4.
Bb5 {[%clk 0:02:48.4]} 4... Nf6 {[%clk 0:02:48.7]} 5. Nxe5 {[%clk 0:02:33.8]}
5... Bxf2+ {[%clk 0:02:43.6]} 6. Kxf2 {[%clk 0:02:33]} 6... Nxe5 {[%clk
0:02:43.7]} 7. d4 {[%clk 0:02:26.2]} 7... Neg4+ {[%clk 0:02:42.6]} 8. Kg1 {[%clk
0:02:26.2]} 8... c6 {[%clk 0:02:41.8]} 9. Be2 {[%clk 0:02:23.3]} 9... d5 {[%clk
0:02:35.6]} 10. e5 {[%clk 0:02:23]} 10... Ne4 {[%clk 0:02:18.4]} 11. Bxg4 {[%clk
0:02:19.7]} 11... Qh4 {[%clk 0:02:14.1]} 12. Nxe4 {[%clk 0:01:59]} 12... Bxg4
{[%clk 0:02:10.2]} 13. Nd6+ {[%clk 0:01:59.1]} 13... Kd7 {[%clk 0:02:08.1]} 14.
Qf1 {[%clk 0:01:56.5]} 14... Be6 {[%clk 0:02:03.5]} 15. c3 {[%clk 0:01:53.9]}
15... f6 {[%clk 0:02:00]} 16. Qf2 {[%clk 0:01:48]} 16... Qxf2+ {[%clk
0:01:57.7]} 17. Kxf2 {[%clk 0:01:47.5]} 17... fxe5 {[%clk 0:01:58.6]} 18. dxe5
{[%clk 0:01:47.5]} 18... Rhf8+ {[%clk 0:01:59.1]} 19. Kg3 {[%clk 0:01:35.3]}
19... b6 {[%clk 0:01:57.8]} 20. Be3 {[%clk 0:01:29.4]} 20... c5 {[%clk
0:01:55.9]} 21. Rhf1 {[%clk 0:01:26.4]} 21... h6 {[%clk 0:01:53.4]} 22. a4
{[%clk 0:01:19.6]} 22... g5 {[%clk 0:01:46.3]} 23. a5 {[%clk 0:01:18.7]} 23...
Rab8 {[%clk 0:01:42.5]} 24. axb6 {[%clk 0:01:16.2]} 24... axb6 {[%clk
0:01:40.3]} 25. Ra7+ {[%clk 0:01:14]} 25... Kc6 {[%clk 0:01:40.6]} 26. Rfa1
{[%clk 0:00:55.4]} 26... h5 {[%clk 0:01:31]} 27. h3 {[%clk 0:00:54.1]} 27... h4+
{[%clk 0:01:30.4]} 28. Kh2 {[%clk 0:00:53.5]} 28... d4 {[%clk 0:01:29.5]} 29.
cxd4 {[%clk 0:00:52.1]} 29... cxd4 {[%clk 0:01:30.4]} 30. Bxd4 {[%clk
0:00:48.7]} 30... Rf4 {[%clk 0:01:26.6]} 31. Rc1+ {[%clk 0:00:42.9]} 31... Kd5
{[%clk 0:01:24.1]} 32. Bc3 {[%clk 0:00:40]} 32... Rf2 {[%clk 0:01:12.5]} 33.
Rd1+ {[%clk 0:00:38.8]} 33... Kc5 {[%clk 0:01:10.5]} 34. Ne4+ {[%clk 0:00:38.3]}
1-0

[Event "*** SCC Grand Prix: Titled Tuesday Blitz"]
[Site "Chess.com"]
[Date "2020.09.29"]
[Round "7"]
[White "stefy02"]
[Black "mamey78"]
[Result "0-1"]
[WhiteElo "2263"]
[BlackElo "2413"]
[TimeControl "180+1"]
[EndTime "11:14:44 PDT"]
[Termination "mamey78 won by resignation"]

1. e4 {[%clk 0:03:00.9]} 1... e5 {[%clk 0:02:56.2]} 2. Nf3 {[%clk 0:03:00.4]}
2... Nc6 {[%clk 0:02:56.5]} 3. Bb5 {[%clk 0:02:59.8]} 3... a6 {[%clk 0:02:56.2]}
4. Ba4 {[%clk 0:02:59.9]} 4... Nf6 {[%clk 0:02:55.1]} 5. O-O {[%clk 0:02:58.7]}
5... b5 {[%clk 0:02:55.5]} 6. Bb3 {[%clk 0:02:58.3]} 6... Be7 {[%clk 0:02:56.4]}
7. Re1 {[%clk 0:02:57.7]} 7... O-O {[%clk 0:02:56.3]} 8. h3 {[%clk 0:02:56.7]}
8... Bb7 {[%clk 0:02:55.9]} 9. c3 {[%clk 0:02:56.1]} 9... d5 {[%clk 0:02:55.9]}
10. exd5 {[%clk 0:02:10]} 10... Nxd5 {[%clk 0:02:56.8]} 11. d3 {[%clk
0:02:09.6]} 11... Qd7 {[%clk 0:02:53.3]} 12. Nxe5 {[%clk 0:01:32.4]} 12... Nxe5
{[%clk 0:02:52.5]} 13. Rxe5 {[%clk 0:01:32.1]} 13... Rad8 {[%clk 0:02:52.2]} 14.
Qg4 {[%clk 0:01:16.2]} 14... f5 {[%clk 0:02:41.3]} 15. Qe2 {[%clk 0:01:00.7]}
15... Bf6 {[%clk 0:02:26.7]} 16. Re6 {[%clk 0:00:59]} 16... Kh8 {[%clk
0:02:23.4]} 17. Na3 {[%clk 0:00:50]} 17... b4 {[%clk 0:02:06.3]} 18. cxb4 {[%clk
0:00:41]} 18... Nxb4 {[%clk 0:01:48]} 19. Nc4 {[%clk 0:00:31.9]} 19... Nxd3
{[%clk 0:01:39.9]} 20. Na5 {[%clk 0:00:21.1]} 20... Be4 {[%clk 0:01:31.2]} 21.
Be3 {[%clk 0:00:17]} 21... Nxb2 {[%clk 0:01:10.5]} 22. Rc1 {[%clk 0:00:16]}
22... Ba8 {[%clk 0:01:03.3]} 23. Rxa6 {[%clk 0:00:14.1]} 23... Nd3 {[%clk
0:01:00.9]} 24. Rd1 {[%clk 0:00:13.6]} 24... f4 {[%clk 0:01:00.6]} 25. Bc1
{[%clk 0:00:13]} 25... f3 {[%clk 0:00:59.3]} 26. Qxf3 {[%clk 0:00:12.3]} 26...
Bxf3 {[%clk 0:00:58.1]} 0-1

[Event "*** SCC Grand Prix: Titled Tuesday Blitz"]
[Site "Chess.com"]
[Date "2020.09.29"]
[Round "7"]
[White "denispopov"]
[Black "davigator"]
[Result "1/2-1/2"]
[WhiteElo "1986"]
[BlackElo "2353"]
[TimeControl "180+1"]
[EndTime "11:14:46 PDT"]
[Termination "Game drawn by repetition"]

1. e4 {[%clk 0:03:00.9]} 1... c5 {[%clk 0:02:58.8]} 2. Nc3 {[%clk 0:03:00.8]}
2... Nc6 {[%clk 0:02:56.4]} 3. Bb5 {[%clk 0:03:00.9]} 3... Nd4 {[%clk
0:02:55.5]} 4. Nf3 {[%clk 0:03:00.8]} 4... e6 {[%clk 0:02:54.1]} 5. Nxd4 {[%clk
0:02:59.7]} 5... cxd4 {[%clk 0:02:51.1]} 6. Ne2 {[%clk 0:02:59.9]} 6... Qb6
{[%clk 0:02:49.2]} 7. Bd3 {[%clk 0:02:59.6]} 7... Ne7 {[%clk 0:02:45.3]} 8. O-O
{[%clk 0:02:58.3]} 8... d5 {[%clk 0:02:44.5]} 9. c3 {[%clk 0:02:55.7]} 9... dxc3
{[%clk 0:02:41.8]} 10. dxc3 {[%clk 0:02:48]} 10... dxe4 {[%clk 0:02:41.7]} 11.
Bxe4 {[%clk 0:02:48.9]} 11... Nc6 {[%clk 0:02:41.5]} 12. Qc2 {[%clk 0:02:44.5]}
12... h6 {[%clk 0:02:40.3]} 13. Be3 {[%clk 0:02:43.7]} 13... Bc5 {[%clk
0:02:39.5]} 14. Bxc5 {[%clk 0:02:34.8]} 14... Qxc5 {[%clk 0:02:39.5]} 15. Rad1
{[%clk 0:02:32.9]} 15... O-O {[%clk 0:02:38.3]} 16. Nd4 {[%clk 0:02:29.9]} 16...
Bd7 {[%clk 0:02:30]} 17. Nb3 {[%clk 0:02:27]} 17... Qe7 {[%clk 0:02:29.7]} 18.
Nc5 {[%clk 0:02:13.4]} 18... Bc8 {[%clk 0:02:25.4]} 19. Bxc6 {[%clk 0:02:04]}
19... bxc6 {[%clk 0:02:24.9]} 20. b4 {[%clk 0:02:03.9]} 20... a5 {[%clk
0:02:23.7]} 21. a3 {[%clk 0:02:02.9]} 21... e5 {[%clk 0:02:24]} 22. Qe4 {[%clk
0:02:00.7]} 22... axb4 {[%clk 0:02:09.4]} 23. axb4 {[%clk 0:01:58.2]} 23... Ra3
{[%clk 0:02:09.7]} 24. Rc1 {[%clk 0:01:47.1]} 24... Qc7 {[%clk 0:02:08.8]} 25.
Rfe1 {[%clk 0:01:44.7]} 25... f6 {[%clk 0:02:07.8]} 26. Qc4+ {[%clk 0:01:43.9]}
26... Kh8 {[%clk 0:02:07.5]} 27. Ra1 {[%clk 0:01:43.3]} 27... Rxa1 {[%clk
0:02:05.3]} 28. Rxa1 {[%clk 0:01:44.2]} 28... Bf5 {[%clk 0:02:02.8]} 29. h3
{[%clk 0:01:38.2]} 29... Rd8 {[%clk 0:02:01]} 30. Qb3 {[%clk 0:01:19.4]} 30...
Kh7 {[%clk 0:01:59.3]} 31. Rd1 {[%clk 0:01:18.5]} 31... Ra8 {[%clk 0:01:35.5]}
32. g4 {[%clk 0:00:57.2]} 32... Bc8 {[%clk 0:01:29.1]} 33. Qc2+ {[%clk
0:00:56.4]} 33... Kg8 {[%clk 0:01:14.5]} 34. Qb3+ {[%clk 0:00:50.8]} 34... Kh7
{[%clk 0:01:13.7]} 35. Qc2+ {[%clk 0:00:50.5]} 35... Kg8 {[%clk 0:01:13.3]} 36.
Qg6 {[%clk 0:00:50.6]} 36... Qe7 {[%clk 0:01:10]} 37. Qe4 {[%clk 0:00:36.3]}
37... Qc7 {[%clk 0:01:01.5]} 38. Qg6 {[%clk 0:00:33.9]} 38... Qe7 {[%clk
0:01:00.8]} 39. Qe4 {[%clk 0:00:34.1]} 39... Qc7 {[%clk 0:01:00]} 40. Qg6 {[%clk
0:00:30]} 1/2-1/2

[Event "*** SCC Grand Prix: Titled Tuesday Blitz"]
[Site "Chess.com"]
[Date "2020.09.29"]
[Round "7"]
[White "PauloCesarCosta_sad"]
[Black "MatyChess1"]
[Result "0-1"]
[WhiteElo "2296"]
[BlackElo "2493"]
[TimeControl "180+1"]
[EndTime "11:14:51 PDT"]
[Termination "MatyChess1 won on time"]

1. Nf3 {[%clk 0:03:00.9]} 1... Nf6 {[%clk 0:02:59.2]} 2. c4 {[%clk 0:03:00.4]}
2... e6 {[%clk 0:02:58.6]} 3. d4 {[%clk 0:02:59.8]} 3... d5 {[%clk 0:02:58.4]}
4. Nc3 {[%clk 0:02:57.7]} 4... Bb4 {[%clk 0:02:58.4]} 5. e3 {[%clk 0:02:56.2]}
5... O-O {[%clk 0:02:57.4]} 6. a3 {[%clk 0:02:40.9]} 6... Bxc3+ {[%clk 0:02:57]}
7. bxc3 {[%clk 0:02:41.1]} 7... c6 {[%clk 0:02:57.5]} 8. Bd3 {[%clk 0:02:27.6]}
8... b6 {[%clk 0:02:57]} 9. O-O {[%clk 0:02:19.5]} 9... Ba6 {[%clk 0:02:56.7]}
10. cxd5 {[%clk 0:02:03.3]} 10... cxd5 {[%clk 0:02:54.3]} 11. Qe2 {[%clk
0:01:59.7]} 11... Bxd3 {[%clk 0:02:52]} 12. Qxd3 {[%clk 0:01:59.7]} 12... Qc7
{[%clk 0:02:50.2]} 13. Ne5 {[%clk 0:01:59.2]} 13... Rc8 {[%clk 0:02:47.6]} 14.
Bd2 {[%clk 0:01:55.9]} 14... Nc6 {[%clk 0:02:47.7]} 15. Nxc6 {[%clk 0:01:54]}
15... Qxc6 {[%clk 0:02:48]} 16. Rfc1 {[%clk 0:01:54.9]} 16... Qc4 {[%clk
0:02:48]} 17. Qxc4 {[%clk 0:01:49.8]} 17... Rxc4 {[%clk 0:02:48.9]} 18. f3
{[%clk 0:01:48]} 18... Ra4 {[%clk 0:02:47.1]} 19. Kf2 {[%clk 0:01:45.6]} 19...
Ne8 {[%clk 0:02:46]} 20. Rcb1 {[%clk 0:01:36.2]} 20... Nd6 {[%clk 0:02:39.3]}
21. Rb4 {[%clk 0:01:36.1]} 21... Rxb4 {[%clk 0:02:34.4]} 22. axb4 {[%clk
0:01:21.2]} 22... a5 {[%clk 0:02:33.7]} 23. bxa5 {[%clk 0:01:13.2]} 23... bxa5
{[%clk 0:02:34.6]} 24. Ra4 {[%clk 0:01:07.4]} 24... Nc4 {[%clk 0:02:32.1]} 25.
Ke2 {[%clk 0:01:05.8]} 25... Nb6 {[%clk 0:02:31.6]} 26. Ra1 {[%clk 0:01:02.4]}
26... a4 {[%clk 0:02:31.9]} 27. Bc1 {[%clk 0:01:01]} 27... Nc4 {[%clk
0:02:31.4]} 28. e4 {[%clk 0:00:51]} 28... Kf8 {[%clk 0:02:28.5]} 29. Kd3 {[%clk
0:00:50.4]} 29... Ke7 {[%clk 0:02:27.2]} 30. Ba3+ {[%clk 0:00:49.8]} 30... Kd7
{[%clk 0:02:27]} 31. Bb4 {[%clk 0:00:43.6]} 31... Kc6 {[%clk 0:02:26.5]} 32. Ra2
{[%clk 0:00:39]} 32... Kb5 {[%clk 0:02:26.2]} 33. Ba3 {[%clk 0:00:36.3]} 33...
h5 {[%clk 0:02:19.6]} 34. h3 {[%clk 0:00:35.6]} 34... g5 {[%clk 0:02:16.5]} 35.
Ra1 {[%clk 0:00:35.5]} 35... Kc6 {[%clk 0:02:15]} 36. Ra2 {[%clk 0:00:34.6]}
36... f5 {[%clk 0:02:09.4]} 37. e5 {[%clk 0:00:31.8]} 37... Rg8 {[%clk
0:02:02.3]} 38. Bc5 {[%clk 0:00:26.5]} 38... Kb5 {[%clk 0:01:59.9]} 39. Ra1
{[%clk 0:00:24.9]} 39... g4 {[%clk 0:02:00.2]} 40. Rb1+ {[%clk 0:00:23.7]} 40...
Kc6 {[%clk 0:01:59.7]} 41. hxg4 {[%clk 0:00:24]} 41... hxg4 {[%clk 0:01:59.1]}
42. Ra1 {[%clk 0:00:20]} 42... gxf3 {[%clk 0:01:56.6]} 43. gxf3 {[%clk
0:00:20.9]} 43... Rg2 {[%clk 0:01:55.6]} 44. Rd1 {[%clk 0:00:01.3]} 44... f4
{[%clk 0:01:40.1]} 0-1

[Event "*** SCC Grand Prix: Titled Tuesday Blitz"]
[Site "Chess.com"]
[Date "2020.09.29"]
[Round "7"]
[White "Witik"]
[Black "SharapovEvgeny"]
[Result "1-0"]
[WhiteElo "2674"]
[BlackElo "2477"]
[TimeControl "180+1"]
[EndTime "11:14:52 PDT"]
[Termination "Witik won by resignation"]

1. d4 {[%clk 0:03:00.9]} 1... d5 {[%clk 0:02:59.1]} 2. Bf4 {[%clk 0:03:00.7]}
2... Nf6 {[%clk 0:02:57.9]} 3. e3 {[%clk 0:03:00.3]} 3... c6 {[%clk 0:02:57.4]}
4. c4 {[%clk 0:02:59.8]} 4... g6 {[%clk 0:02:56.6]} 5. Nc3 {[%clk 0:02:59.8]}
5... Bg7 {[%clk 0:02:56.3]} 6. Nf3 {[%clk 0:03:00.1]} 6... O-O {[%clk
0:02:56.2]} 7. Rc1 {[%clk 0:02:59.3]} 7... Bg4 {[%clk 0:02:53.6]} 8. h3 {[%clk
0:02:56.2]} 8... Bxf3 {[%clk 0:02:52.4]} 9. Qxf3 {[%clk 0:02:57.1]} 9... e6
{[%clk 0:02:52.1]} 10. Bd3 {[%clk 0:02:54.7]} 10... Nbd7 {[%clk 0:02:50.9]} 11.
O-O {[%clk 0:02:54.8]} 11... Re8 {[%clk 0:02:50.3]} 12. Rfd1 {[%clk 0:02:51.9]}
12... Qe7 {[%clk 0:02:46.3]} 13. Bh2 {[%clk 0:02:46.6]} 13... e5 {[%clk
0:02:39.3]} 14. dxe5 {[%clk 0:02:18.6]} 14... Nxe5 {[%clk 0:02:38.4]} 15. Bxe5
{[%clk 0:02:19.2]} 15... Qxe5 {[%clk 0:02:37.8]} 16. cxd5 {[%clk 0:02:19.9]}
16... cxd5 {[%clk 0:02:18.1]} 17. Bb5 {[%clk 0:02:19.2]} 17... Red8 {[%clk
0:02:15.5]} 18. Rd3 {[%clk 0:02:18.5]} 18... a6 {[%clk 0:02:09.4]} 19. Ba4
{[%clk 0:02:18.3]} 19... b5 {[%clk 0:02:07.2]} 20. Bb3 {[%clk 0:02:18.3]} 20...
d4 {[%clk 0:02:07]} 21. exd4 {[%clk 0:02:17.7]} 21... Qd6 {[%clk 0:02:02.7]} 22.
Re1 {[%clk 0:02:00.8]} 22... Ra7 {[%clk 0:02:01.9]} 23. Ne4 {[%clk 0:01:53.6]}
23... Nxe4 {[%clk 0:02:00.6]} 24. Rxe4 {[%clk 0:01:54.5]} 24... Rad7 {[%clk
0:01:54.2]} 25. h4 {[%clk 0:01:45.7]} 25... h5 {[%clk 0:01:53]} 26. g3 {[%clk
0:01:42.8]} 26... a5 {[%clk 0:01:43.1]} 27. a3 {[%clk 0:01:40.9]} 27... a4
{[%clk 0:01:39.7]} 28. Ba2 {[%clk 0:01:40.8]} 28... Qb6 {[%clk 0:01:36.9]} 29.
Kg2 {[%clk 0:01:38.5]} 29... Qa7 {[%clk 0:01:15.9]} 30. Rf4 {[%clk 0:01:30.6]}
30... Rf8 {[%clk 0:01:09.2]} 31. g4 {[%clk 0:01:21.4]} 31... hxg4 {[%clk
0:01:08.1]} 32. Qxg4 {[%clk 0:01:21.8]} 32... Qb7+ {[%clk 0:00:59.3]} 33. Kg1
{[%clk 0:01:15.7]} 33... Rd6 {[%clk 0:00:52.8]} 34. h5 {[%clk 0:01:10.7]} 34...
Bh6 {[%clk 0:00:41]} 35. Rxf7 {[%clk 0:00:58.9]} 35... Rxf7 {[%clk 0:00:35.4]}
36. hxg6 {[%clk 0:00:59.1]} 36... Kg7 {[%clk 0:00:30.3]} 37. gxf7+ {[%clk
0:00:56.2]} 37... Rg6 {[%clk 0:00:29.7]} 38. f8=Q+ {[%clk 0:00:56.4]} 38... Kxf8
{[%clk 0:00:29.3]} 39. Qxg6 {[%clk 0:00:56.7]} 1-0

[Event "*** SCC Grand Prix: Titled Tuesday Blitz"]
[Site "Chess.com"]
[Date "2020.09.29"]
[Round "7"]
[White "anon569"]
[Black "Alindsay211"]
[Result "0-1"]
[WhiteElo "2249"]
[BlackElo "2401"]
[TimeControl "180+1"]
[EndTime "11:14:55 PDT"]
[Termination "Alindsay211 won on time"]

1. e4 {[%clk 0:03:00.9]} 1... c5 {[%clk 0:02:59.3]} 2. Nf3 {[%clk 0:03:00.1]}
2... Nc6 {[%clk 0:02:59.3]} 3. d4 {[%clk 0:02:57.8]} 3... cxd4 {[%clk
0:02:57.7]} 4. Nxd4 {[%clk 0:02:56.1]} 4... e5 {[%clk 0:02:53.4]} 5. Nb5 {[%clk
0:02:55.1]} 5... a6 {[%clk 0:02:53.5]} 6. Nd6+ {[%clk 0:02:54.1]} 6... Bxd6
{[%clk 0:02:53.8]} 7. Qxd6 {[%clk 0:02:54.8]} 7... Qe7 {[%clk 0:02:54.2]} 8. Qd1
{[%clk 0:02:55.2]} 8... Nf6 {[%clk 0:02:51.3]} 9. Nc3 {[%clk 0:02:52]} 9... d6
{[%clk 0:02:51.4]} 10. Bg5 {[%clk 0:02:49.8]} 10... Be6 {[%clk 0:02:50.7]} 11.
Bxf6 {[%clk 0:02:15.6]} 11... Qxf6 {[%clk 0:02:35.1]} 12. Nd5 {[%clk 0:02:14.9]}
12... Bxd5 {[%clk 0:02:34.1]} 13. Qxd5 {[%clk 0:02:13.4]} 13... O-O {[%clk
0:02:27.5]} 14. c3 {[%clk 0:02:11.8]} 14... Ne7 {[%clk 0:02:20.2]} 15. Qb3
{[%clk 0:02:08.3]} 15... Qg6 {[%clk 0:02:12]} 16. f3 {[%clk 0:02:01.3]} 16... b5
{[%clk 0:02:04]} 17. a4 {[%clk 0:01:53.7]} 17... d5 {[%clk 0:01:47]} 18. exd5
{[%clk 0:01:44.9]} 18... Rfd8 {[%clk 0:01:41.8]} 19. axb5 {[%clk 0:01:21.2]}
19... Qb6 {[%clk 0:01:29.1]} 20. Rd1 {[%clk 0:00:47.6]} 20... Qe3+ {[%clk
0:01:23.9]} 21. Be2 {[%clk 0:00:46.6]} 21... axb5 {[%clk 0:01:21]} 22. d6 {[%clk
0:00:30.4]} 22... Nf5 {[%clk 0:01:16.9]} 23. Qc2 {[%clk 0:00:20.5]} 23... Rxd6
{[%clk 0:01:11.4]} 24. Rc1 {[%clk 0:00:03.4]} 24... Rad8 {[%clk 0:00:55.6]} 25.
Qxf5 {[%clk 0:00:01.6]} 25... Rd2 {[%clk 0:00:52.5]} 0-1